Cogmind - Beta 13 @@@ ROGUE MODE // 2024.04.10 @ 00:04:46 Player: Evilsquid Result: Destroyed by Piercing Trap Performance ------------- Evolutions (0) 0 Regions Visited (2) 400 Robots Destroyed (37) 185 Value Destroyed (826) 826 Prototype IDs (0) 0 Alien Tech Used (0) 0 Bonus (0) 0 TOTAL SCORE: 1411 Bonus ------- None Cogmind --------- Core Integrity 0/250 Matter 118/300 Energy 98/100 System Corruption 0% Temperature Cool (1) Movement Treading (360) Ox2 Location -10/Subcaves Parts ------- > --- POWER (1) -------- Subdweller Power Source > --- PROPULSION (2) --- Spiked Treads > --- UTILITY (2) ------ High-capacity Storage Unit Makeshift Light Armor Plating > --- WEAPON (2) ------- Improved Light Cannon Improved Light Cannon > --- INVENTORY (20) --- Subdweller Power Source Arachnoskeleton Subdweller Optics Signal Interpreter Improved Terrain Scanner Terrain Scan Processor Seismic Detector Light Armor Plating Light Armor Plating Light Armor Plating Autogun Autogun Autogun Autogun Improved Light Cannon Subdweller Shrapnel Launcher Dirty Datajack (20) Flamer Peak State ------------ > --- POWER ------------ Subdweller Power Source > --- PROPULSION ------- Subdweller Monowheel Subdweller Monowheel > --- UTILITY ---------- High-capacity Storage Unit Makeshift Light Armor Plating > --- WEAPON ----------- Subdweller Beam Cannon Improved Light Cannon > --- INVENTORY -------- Spiked Treads Arachnoskeleton Subdweller Optics Signal Interpreter Improved Terrain Scanner Terrain Scan Processor Seismic Detector Light Armor Plating Light Armor Plating Light Armor Plating Autogun Autogun Autogun Autogun Improved Light Cannon Improved Light Cannon Improved Light Cannon Flamer [Rating: 20] Favorites ----------- Power Ion Engine Engine Ion Engine Propulsion Light Treads Treads Light Treads Wheel Subdweller Monowheel Utility High-capacity Storage Unit Device Seismic Detector Storage High-capacity Storage Unit Protection Makeshift Light Armor Plating Weapon Improved Light Cannon Energy Gun Medium Laser Energy Cannon Subdweller Beam Cannon Ballistic Gun Autogun Ballistic Cannon Improved Light Cannon Build | -11 -10 -10 ------- Run | Yrd Mat Sub Slots Evolved . | . . . Power . | . . . Propulsion . | . . . Utility . | . . . Weapon . | . . . Parts Attached 46 | 8 20 18 Power 6 | 1 2 3 Engine 6 | 1 2 3 Core . | . . . Reactor . | . . . Propulsion 15 | 2 6 7 Treads 12 | 2 6 4 Leg . | . . . Wheel 3 | . . 3 Hover . | . . . Flight . | . . . Utility 9 | 3 4 2 Device 3 | 2 1 . Storage 3 | 1 2 . Processor . | . . . Hackware . | . . . Protection 3 | . 1 2 Artifact . | . . . Weapon 16 | 2 8 6 Energy Gun 1 | 1 . . Energy Cannon 1 | . . 1 Ballistic Gun 6 | 1 5 . Ballistic Cannon 8 | . 3 5 Launcher . | . . . Special Weapon . | . . . Impact Weapon . | . . . Slashing Weapon . | . . . Piercing Weapon . | . . . Special Melee Weapon . | . . . Unidentified Prototypes . | . . . Parts Lost 7 | . . 7 Power 1 | . . 1 Propulsion 3 | . . 3 Utility 1 | . . 1 Weapon 2 | . . 2 Highest Loss Streak 4 | . . 4 To Critical Strikes . | . . . Average Slot Usage (%) 94 | . 98 93 Engine 13 | . 14 13 Treads 19 | . 26 16 Wheel 3 | . . 4 Device 3 | . 13 . Storage 14 | . 14 14 Protection 10 | . . 13 Ballistic Gun 2 | . 9 . Ballistic Cannon 24 | . 16 27 Naked Turns . | . . . Heaviest Build 61 | 14 56 61 Greatest Support 40 | 40 40 40 Greatest Overweight (x) 17 | . 17 3 Average Overweight (x) 1 | . . 1 Largest Inventory Capacity 20 | 8 20 20 Average Capacity 18 | 7 16 20 Most Carried 20 | 4 19 20 Average Carried 17 | 2 13 19 Final Capacity 20 | 8 20 20 Final Carried 20 | 4 18 20 Class Distribution -------------------- 100% | Mutant Dominant Class ---------------- Mutant | -10/Materials Mutant | -10/Subcaves Resources | -11 -10 -10 ----------- Run | Yrd Mat Sub Matter Collected 1398 | 224 495 679 Remotely . | . . . Salvage Created 1079 | 139 669 271 Parts 69 | 9 45 15 Haulers Intercepted 2 | . 2 . Recyclers Shooed 1 | 1 . . Parts Field Recycled . | . . . Retrieved Matter . | . . . Parts Self-Destructed 12 | . . 12 Prevented . | . . . Kills | -11 -10 -10 ------- Run | Yrd Mat Sub Combat Hostiles Destroyed 23 | . 9 14 Guns 7 | . 7 . Cannons 16 | . 2 14 Classes Destroyed 10 | 2 5 3 Worker 2 | . 2 . Tunneler 3 | 3 . . Hauler 2 | . 2 . Recycler 4 | 1 3 . Watcher 3 | . 3 . Swarmer 6 | . 3 3 Grunt 6 | . 6 . Artisan 1 | . . 1 Cobbler 1 | . . 1 Subdweller 11 | . . 11 Best Kill Streak 3 | 3 3 3 Combat Bots Only 3 | . 3 3 Max Kills in Single Turn 1 | 1 1 1 Gunslinging . | . . . Exploded . | . . . Melee . | . . . Uniques/NPCs Destroyed . | . . . Combat | -11 -10 -10 -------- Run | Yrd Mat Sub Hostile Shots Fired 122 | . 38 84 Missed 40 | . 13 27 Damage Taken 1623 | . 260 1363 Core 251 | . 51 200 Absorbed by Shields . | . . . Core Remaining (%) 100 | 100 . . Volleys Fired 149 | 9 50 90 Largest 2 | 2 2 2 Hottest 119 | 70 78 119 Shots Fired 292 | 18 100 174 Gun 98 | 18 80 . Cannon 194 | . 20 174 Launcher . | . . . Special . | . . . Kinetic 257 | 9 91 157 Thermal 35 | 9 9 17 Explosive . | . . . Electromagnetic . | . . . Robot Hit Streak 15 | 4 9 15 Robot Miss Streak 6 | 2 6 6 Penetration Max . | . . . Secondary Targets . | . . . Shots Hit Robots 149 | 8 51 90 Core Hits 53 | 6 25 22 Critical Kills . | . . . Critical Parts Destroyed . | . . . Critical Strikes 5 | . . 5 Blast 5 | . . 5 Melee Attacks . | . . . Impact . | . . . Slashing . | . . . Piercing . | . . . Sneak Attacks . | . . . Combat Hostiles . | . . . Follow-up Attacks . | . . . Damage Inflicted 2786 | 95 718 1973 Guns 584 | 95 489 . Cannons 2194 | . 221 1973 Explosions . | . . . Melee . | . . . Ramming 8 | . 8 . Kinetic 2233 | 21 648 1564 Thermal 545 | 74 62 409 Explosive . | . . . Electromagnetic . | . . . Impact . | . . . Slashing . | . . . Piercing . | . . . Highest Corruption . | . . . Average Corruption . | . . . Corruption Purged . | . . . Corruption Blocked . | . . . Overload Shots . | . . . Overflow Damage 20 | . . 20 Projectiles 20 | . . 20 Explosions . | . . . Melee . | . . . Knockbacks 26 | . 3 23 Impact . | . . . Kinetic 26 | . 3 23 Secondary . | . . . Self-Inflicted Damage . | . . . Shots . | . . . Rammed 3 | . 3 . Targets Rammed 3 | . 3 . Kicked . | . . . Crushed . | . . . Highest Temperature 270 | 100 168 270 Average Temperature 46 | 45 37 59 Received Heat Transfer 552 | . 114 438 Siege Activations . | . . . Robots Corrupted . | . . . Combat Hostiles . | . . . Parts Fried . | . . . Impact Corruptions . | . . . Robots Melted . | . . . Combat Hostiles . | . . . Parts Melted 1 | 1 . . Heat Transferred 962 | 222 185 555 Parts Sabotaged . | . . . Parts Stolen . | . . . Parts Stripped . | . . . Power Chain Reactions . | . . . Alert | -11 -10 -10 ------- Run | Yrd Mat Sub Peak Influence 173 | 20 173 . Initial 13 | . 13 . Average 40 | 9 42 . Maximum Alert Level . | . . . Low Security (%) 100 | 100 100 . Level 1 . | . . . Level 2 . | . . . Level 3 . | . . . Level 4 . | . . . Level 5 . | . . . High Security . | . . . Max Security . | . . . Squads Dispatched 2 | . 2 . Investigation . | . . . Extermination . | . . . Reinforcement 2 | . 2 . Assault . | . . . Garrison . | . . . Intercept . | . . . Searches Triggered . | . . . Construction Impeded . | . . . Haulers Reinforced . | . . . Active Scanning Responses . | . . . Cargo Convoy Interrupts . | . . . Stealth | -11 -10 -10 --------- Run | Yrd Mat Sub Distress Signals . | . . . Communications Jammed . | . . . Distress Signals . | . . . Times Spotted 31 | . 16 15 Peak Tracking Total 3 | . 3 3 Tactical Retreats . | . . . Traps | -11 -10 -10 ------- Run | Yrd Mat Sub Traps Triggered 3 | . 2 1 Indirectly . | . . . Trap Hack Attempts . | . . . Triggered . | . . . Disarmed . | . . . Reprogrammed . | . . . Reused . | . . . Traps Extracted . | . . . Installed . | . . . Triggered . | . . . Machines | -11 -10 -10 ---------- Run | Yrd Mat Sub Machines Disabled 1 | . 1 . Max in Single Turn 1 | . 1 . Machines Repaired . | . . . Machines Dismantled . | . . . Machines Sabotaged . | . . . Overloaded Fab Kills . | . . . Hacking | -11 -10 -10 --------- Run | Yrd Mat Sub Machines Accessed 1 | . . 1 Terminals . | . . . Fabricators . | . . . Repair Stations . | . . . Recycling Units . | . . . Scanalyzers . | . . . Garrison Access . | . . . Total Hacks 1 | . . 1 Successful 1 | . . 1 Failed . | . . . Catastrophic . | . . . Database Lockouts . | . . . Manual . | . . . Terminals . | . . . Fabricators . | . . . Repair Stations . | . . . Recycling Units . | . . . Scanalyzers . | . . . Garrison Access . | . . . Terminal Hacks 1 | . . 1 Record 1 | . . 1 Fabricator Hacks . | . . . Repair Station Hacks . | . . . Recycling Unit Hacks . | . . . Scanalyzer . | . . . Garrison Access Hacks . | . . . Unauthorized Hacks . | . . . Terminals . | . . . Fabricators . | . . . Repair Stations . | . . . Recycling Units . | . . . Scanalyzers . | . . . Garrison Access . | . . . Data Cores Recovered . | . . . Used . | . . . Hacking Detections . | . . . Full Trace Events . | . . . Feedback Events . | . . . Feedback Blocked . | . . . Robot Schematics Acquired . | . . . Robots Built . | . . . Authchips . | . . . Time . | . . . Total Robot Build Rating . | . . . Part Schematics Acquired . | . . . Parts Built . | . . . Authchips . | . . . Time . | . . . Total Part Build Rating . | . . . Parts Repaired . | . . . Time . | . . . Parts Recycled . | . . . Recycled Matter . | . . . Retrieved Matter . | . . . Retrieved Components . | . . . Parts Scanalyzed . | . . . Part Schematics Acquired . | . . . Parts Damaged . | . . . Bothacking | -11 -10 -10 ------------ Run | Yrd Mat Sub Used RIF Installer . | . . . Robots Hacked . | . . . Non-combat . | . . . Combat . | . . . Robot Hacks Applied . | . . . Relay Couplers Released . | . . . Fabnet Peak Effective % . | . . . Robots Rewired . | . . . Allies Hacked . | . . . Hacks Repelled . | . . . Allies | -11 -10 -10 -------- Run | Yrd Mat Sub Total Allies . | . . . Largest Group . | . . . Highest-Rated Group . | . . . Highest-Rated Ally . | . . . Total Orders . | . . . Ally Attacks . | . . . Total Damage . | . . . Kills . | . . . Allies Corrupted . | . . . Allies Melted . | . . . Intel | -11 -10 -10 ------- Run | Yrd Mat Sub Robot Analysis Total . | . . . Derelict Logs Recovered 1 | . . 1 Drone Launches . | . . . Drone Recoveries . | . . . Exploration | -11 -10 -10 ------------- Run | Yrd Mat Sub Turns Passed 8624 | 158 2009 6457 Spaces Moved 3061 | 76 691 2294 Core 4 | 3 1 . Treads 2429 | 73 690 1666 Legs . | . . . Wheels 628 | . . 628 Hover . | . . . Flight . | . . . Fastest Speed 50 | 50 160 120 Average Speed 237 | 155 209 248 Slowest Speed 900 | 160 900 400 Overloaded Moves . | . . . Propulsion Burnouts . | . . . Robots Hopped . | . . . Cave-ins Triggered . | . . . Exploration Rate (%) 60 | 6 98 77 Regions Visited 2 Branch Regions 1 Pre-discovered Areas . | . . . Known Exits Taken . | . . . Unknown Exits Taken 2 | 1 1 . Scrap Searched 5 | . . 5 Spaces Dug 1 | . 1 . Terrain Destroyed 3 | . 1 2 Melee . | . . . Projectile 3 | . 1 2 AOE . | . . . Terrain Rammed . | . . . Walls Destroyed . | . . . Machines Disabled . | . . . Actions | -11 -10 -10 --------- Run | Yrd Mat Sub Total 4139 | 96 1161 2882 Wait 830 | . 373 457 Move 3059 | 75 690 2294 Hop . | . . . Pick Up 24 | 3 12 9 Fast Attach 20 | 8 8 4 Attach 9 | . 2 7 Detach 6 | 1 4 1 Swap 17 | . 10 7 Drop 22 | . 9 13 Fire 149 | 9 50 90 Melee . | . . . Ram . | . . . Kick . | . . . Crush 3 | . 3 . Escape Stasis . | . . . Rewire . | . . . Trap . | . . . Miscellaneous . | . . . Route ------- -11/Scrapyard -10/Materials (discovered 6 exits: [*Mat x3] / [*Min x2] / *Sub) -10/Subcaves (discovered 1 exit: [*Mat]) History --------- Turn | Location | Event 29 | -11/Scrapyard | Discovered new exit (range 16) 159 | -11/Scrapyard | Entered Materials 312 | -10/Materials | Build established: Mutant 672 | -10/Materials | Discovered new exit (range 3) 842 | -10/Materials | Discovered new exit (range 13) 982 | -10/Materials | Discovered new exit (range 7) 1583 | -10/Materials | Discovered new exit (range 14) 1780 | -10/Materials | Discovered new exit (range 16) 2137 | -10/Materials | Discovered new exit (range 8) 2168 | -10/Materials | Entered Subcaves 2333 | -10/Subcaves | Visited Clippyterm 2947 | -10/Subcaves | Shifting Twisted Machinery released Battle Cannon 3298 | -10/Subcaves | Core integrity fell below 50% 3414 | -10/Subcaves | A swath of the cavern ceiling suddenly collapsed 3712 | -10/Subcaves | A swath of the cavern ceiling suddenly collapsed 4551 | -10/Subcaves | Lost 4 parts (2n2w) 4735 | -10/Subcaves | Discovered new exit (range 7) 4774 | -10/Subcaves | A Subdweller sparked back to life 4775 | -10/Subcaves | Core integrity fell below 20% 4848 | -10/Subcaves | Found Prototype Leg 5976 | -10/Subcaves | Shifting Twisted Machinery released Sub. Power Source 6026 | -10/Subcaves | Shifting Twisted Machinery released Sub. Beam Cannon 8625 | -10/Subcaves | Destroyed by Piercing Trap Last Messages --------------- 06575_ S-10 Pest destroyed. 06578_ Lgt. Assault Rifle fries itself beyond repair. 06578_ Destroyed Flight Unit. 06578_ S-10 Pest knocked back. 06578_ S-10 Pest suffers critical hit (Blast). 06578_ Destroyed Lgt. Ion Engine. 06580_ Subatomizers dissect the Flight Unit. 06582_ Flight Unit fries itself beyond repair. 06584_ S-10 Pest suffers critical hit (Blast). 06584_ S-10 Pest destroyed. 06587_ Acquired 13 matter. 06592_ Flight Unit fries itself beyond repair. 06594_ Acquired 3 matter. 07046_ 4X-9XU(O) collects matter. 07062_ Acquired 5 matter. 07862_ 4X-9XU(O) collects matter. 08625_ Triggered Piercing Trap. 08625_ Spikes shoot up from the floor. 08625_ Critical hit (Impale). Map ----- +----------------------------------------------------+ | # #????????????????????????????????????## | | ###?#####??????????????????????????????# | | ###??## ##?????????????????????????????## # | | ##????# #??????????????????????????????## # | | #????## #???????????????????????????????## # | | ##??## #?????????????????????????????????## # | | #### ###??????????????????????????????????#### | | ##???????????????????????????????????????? | | ##???????????????????????????????????????? | | ##??????????????????????????????????????? | | ## #??????????????????????????????????????? | | ## #??????????????????????????????????????? | | #### ###??????????????????????????????????????? | | ?## ##????????????????????????????????????????? | | ## ###?????????????????????????????????????????? | | # #???????????????????????????????????????????? | | #???????????????????????????????????????????? | | #???????????????????????????????????????????? | | ###???????????????????????????????????????????? | | ##?????####?????????